bitfinex/quotes_SOLUSD_20251214
["timestamp","ask_amount","ask_price","bid_price","bid_amount"]
[1765695155310,30.10905218,132.99,132.98,4.05492992]
[1765695155311,22.58951093,132.99,132.98,4.05492992]
[1765695156009,16.43900044,133.0,132.98,4.05492992]
[1765695156220,39.02681055,133.0,132.99,3.39492992]
[1765695156684,38.34681055,133.0,132.99,3.39492992]
[1765695157187,30.10681055,133.0,132.99,4.05492992]
[1765695157498,7.51843013,133.01,132.99,4.05492992]
[1765695157679,7.51843013,133.01,133.0,3.39492992]
[1765695157680,30.10453967,133.01,133.0,3.39492992]
[1765695159607,30.78453967,133.01,133.0,3.39492992]
[1765695171521,30.10453967,133.01,133.0,7.44985984]
[1765695171706,15.75787017,133.02,133.0,7.44985984]
[1765695171905,7.51787017,133.02,133.01,2.83075078]
[1765695172616,7.51787017,133.02,133.01,2.17075078]
[1765695174128,7.51787017,133.02,133.01,2.83075078]
[1765695178127,7.5171014,133.03,133.01,2.83075078]
[1765695178312,7.5171014,133.03,133.02,2.17075078]
[1765695181730,8.1971014,133.03,133.02,2.17075078]
[1765695182516,8.1971014,133.03,133.02,2.17082632]
[1765695183934,7.5171014,133.03,133.02,2.17082632]
[1765695185332,8.1971014,133.03,133.02,2.17082632]
[1765695188610,7.5171014,133.03,133.02,2.17082632]
[1765695197576,8.1971014,133.03,133.02,2.17082632]
[1765695198257,7.5171014,133.03,133.02,2.17082632]
[1765695198557,8.1971014,133.03,133.02,2.17082632]
[1765695199543,7.5171014,133.03,133.02,2.17082632]
[1765695202448,7.5171014,133.03,133.02,2.87082632]
[1765695203649,7.5171014,133.03,133.02,2.17082632]
[1765695204848,7.5171014,133.03,133.02,2.87082632]
[1765695208959,7.5171014,133.03,133.02,2.17082632]
[1765695213936,8.1971014,133.03,133.02,2.17082632]
[1765695217583,7.5171014,133.03,133.02,2.17096318]
[1765695218166,10.38658521,133.03,133.02,2.17096318]
[1765695227083,29.85933872,133.03,132.99,0.72]
[1765695227380,18.01426806,133.02,132.99,2.17096318]
[1765695227547,18.01426806,133.02,132.98,0.72]
[1765695227880,0.68,133.01,132.99,2.17096318]
[1765695228247,7.51879699,133.0,132.99,2.17096318]
[1765695230079,0.68,133.0,132.99,2.17096318]
[1765695230572,8.19823171,133.01,132.99,2.17096318]
[1765695230954,8.19823171,133.01,133.0,2.17096318]
[1765695231853,8.19823171,133.01,133.0,3.39383088]
[1765695233362,7.51823171,133.01,133.0,3.39383088]
[1765695236877,8.18823171,133.01,133.0,3.39383088]
[1765695237278,15.70921218,133.01,133.0,3.39383088]
[1765695237878,15.03921218,133.01,133.0,3.39383088]
[1765695240181,15.70921218,133.01,133.0,3.39383088]
[1765695240383,15.03921218,133.01,133.0,3.39383088]
[1765695243386,15.70921218,133.01,133.0,3.39383088]
[1765695246984,15.03921218,133.01,133.0,4.10383088]
[1765695252996,15.03921218,133.01,133.0,4.10315197]
[1765695257399,15.75789311,133.02,133.0,4.10315197]
[1765695257607,30.79710529,133.02,133.01,4.10315197]
[1765695260015,30.79710529,133.02,133.01,0.71]
[1765695260195,30.79710529,133.02,133.01,3.39315197]
[1765695264186,30.79710529,133.02,133.01,4.10315197]
[1765695271320,30.79710529,133.02,133.01,3.39315197]
[1765695276401,30.79710529,133.02,133.01,4.08315197]
[1765695277334,30.79710529,133.02,133.01,3.39315197]
[1765695277829,30.79710529,133.02,133.01,4.08315197]
[1765695278050,30.79710529,133.02,133.01,3.39315197]
[1765695279728,30.79710529,133.02,133.01,4.08315197]
[1765695280628,30.79710529,133.02,133.01,3.39315197]
[1765695286249,30.79710529,133.02,133.01,4.08315197]
[1765695289952,30.79710529,133.02,133.01,4.08279458]
[1765695294028,30.79710529,133.02,133.01,2.86137751]
[1765695299656,33.13059129,133.02,133.01,2.86137751]
[1765695302162,33.13059129,133.02,133.01,2.17137751]
[1765695302368,17.37269818,133.02,133.01,2.87137751]
[1765695302558,2.333486,133.02,133.01,2.87137751]
[1765695302748,2.333486,133.02,133.01,21.67067869]
[1765695304225,2.333486,133.02,133.01,29.1889104]
[1765695311647,2.333486,133.02,133.01,90.3889104]
[1765695317892,2.333486,133.02,133.01,98.6289104]
[1765695325399,2.333486,133.02,133.01,98.62759717]
[1765695326596,2.333486,133.02,133.01,79.99930118]
[1765695326786,10.53115251,133.02,133.01,63.37006428]
[1765695326969,13.54218039,133.02,133.01,63.37006428]
[1765695327300,6.02451388,133.02,133.01,63.37006428]
[1765695327894,6.02451388,133.02,133.01,2.17006428]
[1765695327895,13.54218039,133.02,133.01,2.17006428]
[1765695328102,13.54218039,133.02,133.0,2.17006428]
[1765695328285,0.68,133.01,133.0,2.17006428]
[1765695328684,13.54218039,133.01,133.0,2.17006428]
[1765695329685,21.0604121,133.01,133.0,2.17006428]
[1765695331403,21.0604121,133.01,132.99,2.17006428]
[1765695331595,0.68,133.0,132.99,2.17006428]
[1765695331805,21.0604121,133.01,132.99,2.17006428]
[1765695332001,0.68,133.0,132.99,2.17006428]
[1765695337175,9.63,133.0,132.99,2.17006428]
[1765695337602,8.95,133.0,132.99,2.17006428]
[1765695341518,8.95,133.0,132.98,8.95]
[1765695341710,8.95,133.0,132.99,2.17006428]
[1765695352429,8.95,133.0,132.99,2.88006428]
[1765695353940,8.95,133.0,132.99,4.10297728]
[1765695356535,8.95,133.0,132.99,3.39297728]
[1765695358034,0.68,133.01,132.99,3.39297728]
[1765695358206,0.68,133.01,133.0,3.39297728]
[1765695358829,0.68,133.01,132.99,3.39297728]
[1765695360651,0.68,133.01,133.0,3.39336857]
[1765695361315,0.68,133.01,132.99,3.39336857]
[1765695363050,8.19864797,133.01,132.98,11.63336857]
[1765695363220,8.19864797,133.01,132.98,3.39336857]
[1765695363547,0.68,133.0,132.98,3.39336857]
[1765695366041,8.1989207,133.0,132.98,3.39336857]
[1765695367042,0.68,132.99,132.98,3.39336857]
[1765695368040,7.5189207,133.0,132.98,3.39336857]
[1765695368220,8.1989207,133.0,132.98,3.39336857]
[1765695371246,8.1989207,133.0,132.98,4.07336857]
[1765695371851,7.5189207,133.0,132.98,4.07336857]
[1765695376152,8.1984821,133.01,132.98,4.07336857]
[1765695376752,8.1984821,133.01,132.99,3.39336857]
[1765695378623,8.1984821,133.01,132.98,4.07336857]
[1765695382958,8.1984821,133.01,132.98,0.68]
[1765695383247,8.1984821,133.01,132.98,4.07336857]
[1765695387151,7.5184821,133.01,132.98,4.07336857]
[1765695387353,0.68,133.0,132.98,4.07336857]
[1765695387857,8.1984821,133.01,132.98,4.07336857]
[1765695389656,8.1984821,133.01,132.99,3.39336857]
[1765695391365,7.5184821,133.01,132.99,3.39336857]
[1765695391567,7.5184821,133.01,132.99,4.04336857]
[1765695391568,8.1984821,133.01,132.99,4.04336857]
[1765695391764,7.5184821,133.01,132.99,4.04336857]
[1765695393063,8.1984821,133.01,132.99,4.04336857]
[1765695393258,8.1984821,133.01,132.99,0.65]
[1765695393461,8.1984821,133.01,132.99,4.04336857]
[1765695393666,8.1984821,133.01,132.99,0.65]
[1765695394638,8.1984821,133.01,132.98,4.04336857]
[1765695395968,8.1984821,133.01,132.98,4.04390016]
[1765695397264,8.1984821,133.01,132.98,0.65]
[1765695397445,8.1984821,133.01,132.98,4.04390016]
[1765695398770,8.1984821,133.01,132.98,0.65]
[1765695398942,0.68,133.0,132.96,12.28390016]
[1765695399673,0.68,133.0,132.96,3.39390016]
[1765695399966,0.68,133.0,132.95,0.65]
[1765695399967,26.66341109,133.0,132.95,0.65]
[1765695400340,0.68,132.99,132.96,3.39390016]
[1765695400542,23.27121201,132.99,132.96,3.39390016]
[1765695401573,7.5199278,132.98,132.95,0.65]
[1765695401891,8.1999278,132.98,132.96,3.39390016]
[1765695404556,8.1999278,132.98,132.95,4.04390016]
[1765695406900,8.1999278,132.98,132.96,0.65]
[1765695407794,8.1999278,132.98,132.96,4.04390016]
[1765695415407,8.1999278,132.98,132.96,3.39390016]
[1765695415602,8.1999278,132.98,132.95,4.04390016]
[1765695416107,8.1999278,132.98,132.95,2.82304873]
[1765695416808,8.1999278,132.98,132.95,2.89304873]
[1765695417008,8.1999278,132.98,132.96,0.72]
[1765695417895,8.1999278,132.98,132.95,2.89304873]
[1765695419433,8.1999278,132.98,132.95,2.17304873]
[1765695419708,8.1999278,132.98,132.96,0.72]
[1765695419912,22.59121201,132.97,132.96,0.72]
[1765695420913,22.59121201,132.97,132.96,2.89304873]
[1765695423809,8.24,132.99,132.96,2.89304873]
[1765695424014,15.75974163,132.99,132.98,2.17304873]
[1765695424214,15.75974163,132.99,132.98,2.89304873]
[1765695424215,22.58781011,132.99,132.98,2.89304873]
[1765695424443,22.58781011,132.99,132.98,0.72]
[1765695424591,7.51904579,133.0,132.98,2.89304873]
[1765695424792,30.10515533,133.0,132.99,2.17304873]
[1765695424988,30.10515533,133.0,132.99,2.89304873]
[1765695428308,7.51904579,133.0,132.99,2.89304873]
[1765695428623,30.10515533,133.0,132.99,2.89304873]
[1765695428920,26.3146058,133.01,132.99,2.89304873]
[1765695429104,48.90071534,133.01,133.0,0.72]
[1765695429608,48.90071534,133.01,132.99,2.17304873]
[1765695429809,48.90071534,133.01,132.99,2.89304873]
[1765695430930,48.90071534,133.01,132.99,2.89169632]
[1765695431947,49.56071534,133.01,132.99,2.89169632]
[1765695432131,26.9746058,133.01,132.99,2.89169632]
[1765695432327,22.58610954,133.0,132.99,2.89169632]
[1765695432627,22.58610954,133.0,132.99,0.72]
[1765695433404,30.10499983,133.0,132.98,2.17169632]
[1765695433609,30.10499983,133.0,132.98,2.89169632]
[1765695435425,30.10499983,133.0,132.98,2.17169632]
[1765695435613,30.10499983,133.0,132.99,0.72]
[1765695435812,30.10499983,133.0,132.98,2.89169632]
[1765695438339,30.10499983,133.0,132.99,2.17169632]
[1765695438833,30.10499983,133.0,132.99,2.89169632]
[1765695440633,7.51889029,133.0,132.99,2.89169632]
[1765695440834,30.10499983,133.0,132.99,2.89169632]
[1765695441331,26.3146058,133.01,132.99,2.89169632]
[1765695441637,22.58610954,133.0,132.99,2.89169632]
[1765695443836,22.58610954,133.0,132.99,0.72]
[1765695450138,8.16823171,133.01,132.99,0.72]
[1765695450448,15.76045621,133.0,132.99,0.72]
[1765695450637,15.76045621,133.0,132.99,2.89169632]
[1765695450842,18.77150424,133.02,132.99,2.89169632]
[1765695451039,15.76045621,133.01,133.0,0.69]
[1765695451741,15.76045621,133.01,132.99,2.86169632]
[1765695451942,16.44045621,133.01,132.99,2.86169632]
[1765695454550,15.76045621,133.01,132.99,2.86169632]
[1765695457024,16.44045621,133.01,132.99,2.86169632]
[1765695462653,15.76045621,133.01,132.99,2.86169632]
[1765695463858,0.68,133.0,132.97,72.30169632]
[1765695464230,0.68,133.0,132.97,70.13]
[1765695464543,23.26610954,133.0,132.97,70.13]
[1765695464740,30.78515853,133.0,132.97,70.13]
[1765695464926,8.19904899,133.0,132.97,70.13]
[1765695465126,22.58781011,132.99,132.97,70.13]
[1765695466055,8.19904899,133.0,132.97,8.93]
[1765695466255,30.7868591,133.0,132.96,9.69361382]
[1765695466436,30.7868591,133.0,132.98,0.69]
[1765695466623,8.19904899,133.0,132.97,2.17259212]
[1765695466824,7.5210217,132.99,132.97,2.86259212]
[1765695468156,7.5210217,132.99,132.97,2.17259212]
[1765695468348,7.5210217,132.99,132.98,0.69]
[1765695472544,7.5210217,132.99,132.97,2.17259212]
[1765695472743,7.5210217,132.99,132.97,2.86259212]
[1765695474343,7.5210217,132.99,132.98,0.69]
[1765695479175,8.19904899,133.0,132.98,0.69]
[1765695479544,15.72007069,133.0,132.98,0.69]
[1765695482674,15.72007069,133.0,132.97,4.05434546]
[1765695483176,8.19946012,132.99,132.97,4.05434546]
[1765695483574,0.68,132.98,132.95,73.49434546]
[1765695483780,0.68,132.98,132.96,0.66]
[1765695486988,26.31503939,132.99,132.96,0.66]
[1765695487175,26.31503939,132.99,132.96,4.05434546]
[1765695487176,26.99503939,132.99,132.96,4.05434546]
[1765695487482,26.99503939,132.99,132.97,0.66]
[1765695494867,26.99503939,132.99,132.96,4.05434546]
[1765695499899,26.99503939,132.99,132.97,0.66]
[1765695500401,26.99503939,132.99,132.96,4.05434546]
[1765695500604,26.99503939,132.99,132.97,0.66]
[1765695507479,26.99503939,132.99,132.96,4.11492594]
[1765695510095,26.99503939,132.99,132.96,3.39492594]
[1765695510295,26.99503939,132.99,132.97,0.72]
[1765695511212,26.99503939,132.99,132.96,3.39492594]
[1765695511384,26.99503939,132.99,132.96,4.11492594]
[1765695513502,26.99503939,132.99,132.96,3.39492594]
[1765695513694,26.99503939,132.99,132.97,0.72]
[1765695517110,26.99503939,132.99,132.96,3.39492594]
[1765695517319,26.99503939,132.99,132.96,4.11492594]
[1765695518017,30.99503939,132.99,132.96,4.11492594]
[1765695518201,30.99503939,132.99,132.97,0.72]
[1765695518589,30.99503939,132.99,132.96,4.11492594]
[1765695519528,22.79557927,132.99,132.97,4.11492594]
[1765695519819,4.0,132.99,132.98,3.39492594]
[1765695520001,4.0,132.99,132.98,4.11492594]
[1765695530823,4.0,132.99,132.98,0.72]
[1765695531003,4.0,132.99,132.98,4.11492594]
[1765695531825,4.0,132.99,132.98,0.72]
[1765695539638,11.52099746,132.99,132.98,0.72]
[1765695541942,11.52099746,132.99,132.98,2.8922556]
[1765695542149,4.0,132.99,132.98,2.8922556]
[1765695545240,4.10454129,132.99,132.98,2.8922556]
[1765695545739,4.10454129,132.99,132.98,0.72]
[1765695546038,4.10454129,132.99,132.98,2.8922556]
[1765695546962,4.10454129,132.99,132.98,0.72]
[1765695547150,4.10454129,132.99,132.98,2.8922556]
[1765695566770,4.10454129,132.99,132.98,10.4121834]
[1765695567081,4.10454129,132.99,132.98,22.37822811]
[1765695570076,4.10454129,132.99,132.98,83.57822811]
[1765695571252,4.10454129,132.99,132.98,83.57766641]
[1765695597918,4.10454129,132.99,132.98,84.79861483]
[1765695600421,4.10454129,132.99,132.98,23.59861483]
[1765695600579,4.10454129,132.99,132.98,23.88293797]
[1765695600782,4.10454129,132.99,132.98,27.27558029]
[1765695601085,4.10454129,132.99,132.98,23.88293797]
[1765695602095,4.10454129,132.99,132.98,23.59861483]
[1765695604717,4.78454129,132.99,132.97,28.80748736]
[1765695604875,4.10454129,132.99,132.98,3.39264232]
[1765695605499,4.78454129,132.99,132.98,3.39264232]
[1765695606010,4.78454129,132.99,132.97,11.63264232]
[1765695606215,0.68,132.98,132.97,11.63264232]
[1765695606581,0.68,132.98,132.97,11.63426527]
[1765695607393,16.85294917,132.99,132.97,11.63426527]
[1765695607712,16.85294917,132.99,132.97,8.24]
[1765695607915,4.78454129,132.99,132.97,11.63426527]
[1765695609813,4.10454129,132.99,132.97,3.39426527]
[1765695610111,0.68,132.98,132.96,61.2]
[1765695610292,0.68,132.98,132.95,64.59426527]
[1765695610476,0.68,132.98,132.95,72.11554336]
[1765695610680,23.26781011,132.98,132.95,72.11554336]
[1765695611199,0.68,132.97,132.95,72.11554336]
[1765695611908,0.68,132.97,132.94,8.24]
[1765695612131,0.68,132.97,132.94,11.63426527]
[1765695612320,23.26781011,132.97,132.94,11.63426527]
[1765695612617,23.26781011,132.97,132.94,12.34426527]
[1765695612912,0.68,132.96,132.94,12.34426527]
[1765695613080,0.68,132.96,132.94,11.63426527]
[1765695616920,0.68,132.96,132.94,12.34426527]
[1765695617821,0.68,132.96,132.94,11.63426527]
[1765695618126,0.68,132.96,132.94,8.24]
[1765695620408,0.68,132.96,132.94,11.63426527]
[1765695622013,8.2011914,132.96,132.94,8.24]
[1765695622333,8.2011914,132.96,132.93,61.2]
[1765695622502,0.68,132.95,132.93,61.2]
[1765695622702,0.68,132.95,132.92,81.26756409]
[1765695624934,0.68,132.95,132.93,3.39426527]
[1765695627944,23.27291335,132.95,132.93,3.39426527]
[1765695629034,0.68,132.95,132.93,3.39426527]
[1765695629234,23.27291335,132.95,132.93,3.39426527]
[1765695629546,0.68,132.95,132.93,3.39426527]
[1765695629726,8.20164504,132.95,132.93,3.39426527]
[1765695630547,8.20164504,132.95,132.93,4.05426527]
[1765695636421,0.68,132.95,132.94,3.39426527]
[1765695637944,30.1141915,132.96,132.94,3.39426527]
[1765695638114,7.52127815,132.96,132.94,4.05426527]
[1765695638315,0.65,132.96,132.94,4.05426527]
[1765695638516,0.65,132.96,132.94,3.39426527]
[1765695639023,0.65,132.96,132.93,0.66]
[1765695639224,0.65,132.96,132.94,3.39426527]
[1765695639453,8.17129985,132.96,132.94,3.39426527]
[1765695639950,0.65,132.95,132.93,4.05426527]
[1765695643751,8.17129985,132.96,132.93,4.05426527]
[1765695643955,30.11193909,132.97,132.94,4.05426527]
[1765695644247,4.10454129,132.99,132.96,3.39426527]
[1765695644447,4.10454129,132.99,132.98,3.39426527]
[1765695645041,4.75454129,132.99,132.98,3.39426527]
[1765695645240,12.27415572,132.99,132.98,3.39426527]
[1765695647851,11.62415572,132.99,132.98,3.39426527]
[1765695649238,11.62415572,132.99,132.98,4.05426527]
[1765695649239,4.10454129,132.99,132.98,4.05426527]
[1765695650426,4.10454129,132.99,132.98,3.39426527]
[1765695650626,4.10454129,132.99,132.98,4.05426527]
[1765695653631,4.10454129,132.99,132.98,26.63697444]
[1765695654225,4.10454129,132.99,132.98,34.15690224]
[1765695659854,4.10454129,132.99,132.98,30.76263697]
[1765695660060,4.10454129,132.99,132.98,32.93401679]
[1765695660244,4.10454129,132.99,132.98,10.35130762]
[1765695671272,4.10454129,132.99,132.97,8.24]
[1765695671573,4.10454129,132.99,132.98,2.17137982]
[1765695671958,4.78454129,132.99,132.98,2.17137982]
[1765695673476,4.78454129,132.99,132.97,17.93169489]
[1765695673666,4.78454129,132.99,132.97,18.59169489]
[1765695675164,4.78454129,132.99,132.98,2.17137982]
[1765695678990,4.10454129,132.99,132.98,10.35130762]
[1765695691380,4.10454129,132.99,132.98,8.1799278]
[1765695691706,4.10454129,132.99,132.98,10.35130762]
[1765695692685,4.10454129,132.99,132.98,9.69130762]
[1765695694884,4.10454129,132.99,132.98,10.37130762]
[1765695716731,4.10454129,132.99,132.98,8.1999278]
[1765695716939,4.10454129,132.99,132.98,10.37130762]
[1765695720034,4.10454129,132.99,132.98,11.59336126]
[1765695721504,4.10454129,132.99,132.98,15.69790255]
[1765695726456,4.10454129,132.99,132.98,12.30446909]
[1765695726625,4.10454129,132.99,132.98,15.69790255]
[1765695729042,4.10454129,132.99,132.98,4.10454129]
[1765695729251,4.78454129,132.99,132.97,19.15369201]
[1765695729446,8.20908258,132.99,132.98,11.61336126]
[1765695729814,4.10454129,132.99,132.98,11.61336126]
[1765695742659,4.10454129,132.99,132.98,10.91336126]
[1765695745658,4.78454129,132.99,132.98,3.39343346]
[1765695745841,4.78454129,132.99,132.97,10.9136783]
[1765695746153,0.68,132.98,132.97,10.9136783]
[1765695753053,0.68,132.98,132.96,3.39343346]
[1765695753259,8.1999278,132.98,132.96,3.39343346]
[1765695753462,17.19456358,132.98,132.96,3.39343346]
[1765695753639,0.68,132.97,132.94,8.24]
[1765695753948,0.68,132.97,132.94,11.63343346]
[1765695754151,20.5694063,132.96,132.94,11.63343346]
[1765695754661,21.2494063,132.96,132.95,3.39343346]
[1765695756262,21.2494063,132.96,132.94,8.24]
[1765695756563,20.5694063,132.96,132.95,3.39343346]
[1765695756771,21.2494063,132.96,132.95,3.39343346]
[1765695759157,21.2494063,132.96,132.94,11.63343346]
[1765695759873,21.2494063,132.96,132.95,3.39343346]
[1765695762068,21.2494063,132.96,132.94,11.63343346]
[1765695768079,0.68,132.97,132.95,4.05343346]
[1765695768383,0.68,132.97,132.96,3.39343346]
[1765695769476,9.58,132.97,132.96,3.39343346]
[1765695770086,0.68,132.97,132.96,3.39343346]
[1765695770291,0.68,132.97,132.95,7.52133771]
[1765695770472,0.68,132.97,132.95,10.91477117]
[1765695771694,12.30409828,132.97,132.95,10.91477117]
[1765695779991,12.30409828,132.97,132.95,11.61477117]
[1765695781597,0.68,132.96,132.94,15.76174238]
[1765695782096,12.30409828,132.96,132.94,17.93513093]
[1765695782481,0.68,132.96,132.94,18.63513093]
[1765695783068,0.68,132.96,132.94,16.46174238]
[1765695784497,0.68,132.96,132.94,15.76174238]
[1765695784673,0.68,132.96,132.92,7.72315794]
[1765695784674,10.37470157,132.96,132.92,7.72315794]
[1765695784875,17.89499311,132.96,132.92,16.66315794]
[1765695785075,0.68,132.95,132.92,16.66315794]
[1765695787602,0.68,132.95,132.92,18.83654649]
[1765695787896,7.52029154,132.96,132.94,2.17338855]
[1765695788075,8.19994656,132.98,132.94,2.17338855]
[1765695788276,0.68,132.97,132.95,2.87338855]
[1765695788794,7.51994656,132.98,132.95,2.17338855]
[1765695789114,7.51994656,132.98,132.96,0.7]
[1765695789404,8.19994656,132.98,132.96,0.7]
[1765695789594,8.19994656,132.98,132.95,2.17338855]
[1765695789804,7.51994656,132.98,132.95,2.87338855]
[1765695789993,0.68,132.97,132.95,2.87338855]
[1765695790191,8.19994656,132.98,132.95,2.17338855]
[1765695790390,8.19994656,132.98,132.96,0.7]
[1765695791505,0.68,132.98,132.96,2.87338855]
[1765695792085,0.68,132.98,132.96,0.7]
[1765695792285,0.68,132.98,132.96,2.87338855]
[1765695793580,0.68,132.98,132.96,2.17338855]
[1765695793989,0.68,132.98,132.96,2.87338855]
[1765695794211,0.68,132.98,132.96,0.7]
[1765695794410,0.68,132.98,132.96,2.87338855]
[1765695799909,12.30407968,132.99,132.96,2.87338855]
[1765695800107,4.78454129,132.99,132.96,10.39437894]
[1765695800287,4.78454129,132.99,132.97,0.7]
[1765695801292,4.78454129,132.99,132.97,2.87338855]
[1765695801692,4.78454129,132.99,132.97,2.17338855]
[1765695802899,4.78454129,132.99,132.97,2.87338855]
[1765695806035,4.10454129,132.99,132.97,2.87338855]
[1765695806734,4.10454129,132.99,132.97,9.69379339]
[1765695806895,4.10454129,132.99,132.98,2.89338855]
[1765695812024,4.10454129,132.99,132.98,10.41331635]
[1765695816501,4.10454129,132.99,132.98,71.61331635]
[1765695841953,4.10454129,132.99,132.98,72.83341261]
[1765695843361,1.89454129,132.99,132.98,76.22689742]
[1765695843545,1.89454129,132.99,132.98,17.33419586]
[1765695843858,1.89454129,132.99,132.98,10.81459901]
[1765695844055,1.89454129,132.99,132.98,6.40383288]
[1765695844263,1.89454129,132.99,132.98,10.91341261]
[1765695844756,1.89454129,132.99,132.98,11.19773575]
[1765695844930,1.89454129,132.99,132.98,14.20831039]
[1765695855063,1.89454129,132.99,132.98,75.40831039]
[1765695871371,1.89454129,132.99,132.98,87.61174012]
[1765695885093,0.44504725,133.0,132.99,21.85703612]
[1765695885283,0.44504725,133.0,132.99,98.08400574]
[1765695885666,0.44504725,133.0,132.99,103.01011597]
[1765695885873,0.7855532,133.01,133.0,0.28432314]
[1765695886075,0.7855532,133.01,133.0,28.92832888]
[1765695886290,4.92611023,133.02,133.01,21.85703612]
[1765695886499,4.92611023,133.02,133.01,94.69052093]
[1765695886972,4.92611023,133.02,133.01,99.61663116]
[1765695887294,4.92611023,133.02,133.01,107.13486287]
[1765695887493,4.67655485,133.03,133.02,0.28432314]
[1765695887679,4.67655485,133.03,133.02,77.08123768]
[1765695887871,4.71638604,133.04,133.03,22.14135926]
[1765695888072,4.71638604,133.04,133.03,98.36832888]
[1765695888668,4.71638604,133.04,133.03,104.61676124]
[1765695889089,4.71638604,133.04,133.03,99.08677144]
[1765695889298,5.96006534,133.05,133.04,20.11838396]
[1765695889875,5.96006534,133.05,133.04,26.72116841]
[1765695890270,5.96006534,133.05,133.04,34.23770479]
[1765695892597,5.96006534,133.05,133.04,30.00055851]
[1765695893805,5.96006534,133.05,133.04,195.60055851]
[1765695899824,6.24843236,133.06,133.05,22.14135926]
[1765695899980,6.24843236,133.06,133.05,98.36832888]
[1765695900714,6.24843236,133.06,133.05,105.72803638]
[1765695900906,6.24843236,133.06,133.05,104.43406289]
[1765695901075,6.96843236,133.06,133.05,104.14973975]
[1765695901581,6.96843236,133.06,133.05,100.75625494]
[1765695901786,6.96843236,133.06,133.05,80.34945624]
[1765695904085,6.96843236,133.06,133.05,79.1253771]
[1765695905983,6.96843236,133.06,133.03,9.68594293]
[1765695906177,0.72,133.05,133.03,9.68594293]
[1765695907583,0.72,133.05,133.03,7.51653726]
[1765695907783,0.72,133.05,133.03,9.68594293]
[1765695912913,0.72,133.05,133.03,9.68700574]
[1765695927799,0.72,133.05,133.04,2.17046848]
[1765695929899,0.72,133.05,133.04,9.68700486]
[1765695932135,0.72,133.05,133.03,7.5171014]
[1765695932441,0.72,133.05,133.04,2.17046848]
[1765695934325,0.72,133.05,133.04,9.68700486]
[1765695935710,0.72,133.05,133.03,7.5171014]
[1765695936016,0.72,133.05,133.04,2.17046848]
[1765695938038,0.72,133.05,133.04,9.68700486]
[1765695940235,6.94843236,133.06,133.04,9.68700486]
[1765695940437,6.94843236,133.06,133.05,2.17046848]
[1765695941048,6.24843236,133.06,133.05,2.17046848]
[1765695941217,6.24843236,133.06,133.05,9.68643991]
[1765695941611,6.94843236,133.06,133.05,9.68643991]
[1765695947945,6.94843236,133.06,133.05,7.51597143]
[1765695955253,6.94843236,133.06,133.04,61.2]
[1765695955428,0.7,133.05,133.04,61.2]
[1765695957859,10.38593857,133.05,133.04,61.2]
[1765695958044,18.62593857,133.05,132.99,2.16996714]
[1765695958240,2.87996714,133.04,132.99,63.36996714]
[1765695958735,0.71,133.03,132.99,63.36996714]
[1765695959332,0.71,133.03,133.0,7.51876478]
[1765695959940,0.71,133.03,133.0,9.68873192]
[1765695960454,8.22710384,133.03,133.0,2.16996714]
[1765695961470,0.71,133.02,133.0,2.16996714]
[1765695961766,2.16996714,133.01,132.96,9.69068082]
[1765695962261,0.71,133.0,132.96,9.69068082]
[1765695962759,0.71,133.0,132.97,9.69034749]
[1765695965960,0.71,133.0,132.97,10.91462847]
[1765695967244,8.22883218,133.0,132.97,3.39424812]
[1765695967436,8.22883218,133.0,132.96,10.91507085]
[1765695967636,0.71,132.99,132.96,10.91507085]
[1765695967858,0.71,132.99,132.97,3.39424812]
[1765695968259,0.71,132.99,132.96,3.39424812]
[1765695968449,0.71,132.99,132.95,90.00849011]
[1765695968651,0.71,132.99,132.96,3.39424812]
[1765695972573,8.22952327,132.99,132.96,3.39424812]
[1765695972762,0.71,132.98,132.96,3.39424812]
[1765695978466,8.23010644,132.98,132.95,61.2]
[1765695978664,11.62435456,132.98,132.93,8.24]
[1765695978971,0.71,132.97,132.93,11.63424812]
[1765695979988,8.23085927,132.97,132.93,11.63424812]
[1765695980344,0.71,132.96,132.93,19.15697177]
[1765695980743,0.71,132.96,132.94,3.39424812]
[1765695984875,0.71,132.96,132.94,3.39584056]
[1765695987388,0.71,132.96,132.93,19.15856421]
[1765695988491,0.71,132.96,132.94,3.39584056]
[1765695989788,8.23143099,132.96,132.93,8.24]
[1765695990089,8.23143099,132.96,132.93,11.63584056]
[1765695990295,0.69,132.95,132.93,11.63584056]
[1765695991287,0.69,132.95,132.93,19.15858072]
[1765695991585,0.69,132.95,132.93,11.63584056]